[Event "EYCC Girls-U16 2019"]
[Site "Bratislava"]
[Date "2019.08.04"]
[Round "3.4"]
[White "Duran, Esma Doga"]
[Black "Hryzlova, Sofiia"]
[Result "0-1"]
[ECO "A90"]
[WhiteElo "2096"]
[BlackElo "1799"]
[Annotator "NA"]
[PlyCount "56"]
[EventDate "2019.08.02"]
[EventType "swiss"]
[EventCountry "SVK"]
[SourceTitle "playchess.com"]
[Source "ChessBase"]
[SourceQuality "1"]
[TimeControl "40/5400+30:1800+30"]

1. d4 {[%emt 0:00:00]} e6 {[%emt 0:01:01]} 2. c4 {[%emt 0:00:47]} f5 {[%emt 0:00:39]} 3. g3 {[%emt 0:01:55]} Nf6 {[%emt 0:00:45]} 4. Bg2 {[%emt 0:00:12]} c6 {[%emt 0:03:59]} 5. Nf3 {[%emt 0:21:52]} d5 {[%emt 0:00:27]} 6. O-O {[%emt 0:00:12]} Bd6 {[%emt 0:00:57]} 7. Bf4 {[%emt 0:00:28]} Be7 {[%emt 0:00:44]} 8. Nc3 {[%emt 0:00:27]} O-O {[%emt 0:06:00]} 9. Bxb8 Rxb8 {[%emt 0:00:18]} 10. Ne5 {[%emt 0:30:40]} Nd7 {[%emt 0:05:57]} 11. Nxd7 {[%emt 0:01:55]} Qxd7 {[%emt 0:01:56]} 12. c5 {[%emt 0:04:26]} e5 {[%emt 0:07:32]} 13. e3 {[%emt 0:06:46]} f4 {[%emt 0:13:29]} 14. dxe5 {[%emt 0:08:42]} fxe3 {[%emt 0:00:51]} 15. Qd4 {[%emt 0:02:04]} exf2+ {[%emt 0:06:33]} 16. Rxf2 {[%emt 0:00:17]} Qg4 {[%emt 0:01:29]} 17. Rf4 {[%emt 0:12:00]} Rxf4 {[%emt 0:01:42]} 18. gxf4 {[%emt 0:00:03]} Be6 {[%emt 0:00:37]} 19. Rf1 {[%emt 0:01:15]} Rf8 {[%emt 0:04:15]} 20. Rf3 {[%emt 0:04:31]} Qh4 {[%emt 0:03:10]} 21. Qe3 {[%emt 0:00:43]} Bg4 {[%emt 0:04:44]} 22. Rg3 {[%emt 0:00:49]} Bh5 {[%emt 0:01:21]} 23. Rh3 {[%emt 0:00:49]} Qg4 {[%emt 0:00:08]} 24. Kh1 {[%emt 0:00:26]} Rxf4 {[%emt 0:12:55]} 25. Rxh5 {[%emt 0:00:38]} d4 {[%emt 0:00:06]} 26. Qh3 {[%emt 0:00:25]} dxc3 {[%emt 0:00:31]} 27. bxc3 {[%emt 0:00:27]} Qd1+ {[%emt 0:00:15]} 28. Bf1 {[%emt 0:00:01]} Rxf1+ {[%emt 0:00:40]} 0-1

[Event "EYCC Girls-U16 2019"]
[Site "Bratislava"]
[Date "2019.08.04"]
[Round "3.5"]
[White "Kuhar, Larisa"]
[Black "Ilyina, Lada"]
[Result "1-0"]
[ECO "B06"]
[WhiteElo "1894"]
[BlackElo "2048"]
[Annotator "NA"]
[PlyCount "57"]
[EventDate "2019.08.02"]
[EventType "swiss"]
[EventCountry "SVK"]
[SourceTitle "playchess.com"]
[Source "ChessBase"]
[SourceQuality "1"]
[TimeControl "40/5400+30:1800+30"]

1. e4 {[%emt 0:00:00]} g6 {[%emt 0:00:00]} 2. d4 {[%emt 0:00:00]} Bg7 {[%emt 0:00:00]} 3. Nc3 {[%emt 0:00:48]} a6 {[%emt 0:00:19]} 4. Be2 {[%emt 0:04:42]} d6 {[%emt 0:00:28]} 5. h4 {[%emt 0:08:27]} h5 {[%emt 0:03:17]} 6. a3 {[%emt 0:07:12]} Nc6 {[%emt 0:08:10]} 7. Be3 {[%emt 0:02:42]} Nf6 {[%emt 0:00:52]} 8. Nf3 {[%emt 0:02:15]} Bg4 {[%emt 0:07:41]} 9. Ng5 {[%emt 0:01:11]} Bxe2 {[%emt 0:01:45]} 10. Qxe2 {[%emt 0:00:13]} Ng4 {[%emt 0:05:28]} 11. O-O-O {[%emt 0:11:40]} e5 {[%emt 0:25:25]} 12. dxe5 {[%emt 0:05:38]} Bxe5 {[%emt 0:04:37]} 13. Nd5 {[%emt 0:01:40]} Nxe3 {[%emt 0:15:40]} 14. Qxe3 {[%emt 0:03:44]} O-O {[%emt 0:01:05]} 15. f4 {[%emt 0:07:01]} Bg7 {[%emt 0:00:06]} 16. f5 {[%emt 0:02:46]} Ne7 {[%emt 0:05:52]} 17. fxg6 Nxd5 {[%emt 0:00:16]} 18. gxf7+ {[%emt 0:09:54]} Rxf7 {[%emt 0:02:14]} 19. exd5 {[%emt 0:00:57]} Bh6 {[%emt 0:05:05]} 20. Kb1 {[%emt 0:00:18]} Qe7 {[%emt 0:05:58]} 21. Qb3 {[%emt 0:07:43]} Bxg5 {[%emt 0:00:34]} 22. hxg5 {[%emt 0:00:08]} Qxg5 {[%emt 0:00:39]} 23. Qxb7 {[%emt 0:01:17]} Raf8 {[%emt 0:00:08]} 24. Qxa6 {[%emt 0:01:01]} Rf2 {[%emt 0:00:56]} 25. Qc4 {[%emt 0:06:25]} R8f7 {[%emt 0:01:20]} 26. g3 {[%emt 0:03:10]} Rg2 {[%emt 0:03:17]} 27. Rhf1 {[%emt 0:03:24]} Rg7 {[%emt 0:01:00]} 28. Qe4 {[%emt 0:02:43]} Qe7 {[%emt 0:01:15]} 29. Qxg2 {[%emt 0:00:09]} 1-0

[Event "EYCC Girls-U16 2019"]
[Site "Bratislava"]
[Date "2019.08.04"]
[Round "3.6"]
[White "Sade, Defne"]
[Black "Hercog, Nusa"]
[Result "1/2-1/2"]
[ECO "B40"]
[WhiteElo "1897"]
[BlackElo "2053"]
[Annotator "NA"]
[PlyCount "75"]
[EventDate "2019.08.02"]
[EventType "swiss"]
[EventCountry "SVK"]
[SourceTitle "playchess.com"]
[Source "ChessBase"]
[SourceQuality "1"]
[TimeControl "40/5400+30:1800+30"]

1. e4 {[%emt 0:00:00]} c5 {[%emt 0:00:00]} 2. Nf3 {[%emt 0:00:00]} e6 {[%emt 0:00:00]} 3. d4 {[%emt 0:00:00]} cxd4 {[%emt 0:00:00]} 4. Nxd4 {[%emt 0:00:00]} Nf6 {[%emt 0:00:00]} 5. Nc3 {[%emt 0:00:00]} Nc6 {[%emt 0:00:04]} 6. Be2 {[%emt 0:00:36]} Bb4 {[%emt 0:00:33]} 7. O-O {[%emt 0:00:16]} Bxc3 {[%emt 0:00:29]} 8. bxc3 {[%emt 0:00:07]} Nxe4 {[%emt 0:00:14]} 9. Bd3 {[%emt 0:00:09]} d5 {[%emt 0:00:22]} 10. Nxc6 {[%emt 0:07:27]} bxc6 {[%emt 0:00:08]} 11. Bxe4 {[%emt 0:10:30]} dxe4 {[%emt 0:00:06]} 12. Qg4 {[%emt 0:00:13]} O-O {[%emt 0:28:17]} 13. Rd1 {[%emt 0:06:00]} e5 {[%emt 0:04:53]} 14. Qh5 {[%emt 0:00:15]} Qf6 {[%emt 0:07:19]} 15. Ba3 {[%emt 0:03:36]} Re8 {[%emt 0:00:06]} 16. Rd6 {[%emt 0:04:32]} Be6 {[%emt 0:01:30]} 17. Re1 {[%emt 0:02:16]} Rad8 {[%emt 0:06:31]} 18. Qd1 {[%emt 0:13:10]} Rxd6 {[%emt 0:03:02]} 19. Qxd6 {[%emt 0:00:10]} Bxa2 {[%emt 0:02:20]} 20. Qxf6 {[%emt 0:03:44]} gxf6 {[%emt 0:00:02]} 21. Rxe4 {[%emt 0:00:07]} f5 {[%emt 0:04:31]} 22. Ra4 {[%emt 0:05:20]} Rd8 {[%emt 0:01:07]} 23. h3 {[%emt 0:00:05]} Rd2 {[%emt 0:09:49]} 24. Ra5 {[%emt 0:02:00]} Bd5 {[%emt 0:03:00]} 25. c4 {[%emt 0:01:24]} Bxc4 {[%emt 0:00:08]} 26. Rxe5 {[%emt 0:00:06]} Rxc2 {[%emt 0:01:47]} 27. Rxf5 {[%emt 0:00:09]} Kg7 {[%emt 0:03:31]} 28. Be7 {[%emt 0:03:38]} h6 {[%emt 0:00:27]} 29. Bc5 {[%emt 0:11:20]} Kg6 {[%emt 0:06:02]} 30. g4 {[%emt 0:00:51]} Be6 {[%emt 0:03:06]} 31. Rh5 {[%emt 0:00:57]} f5 {[%emt 0:00:45]} 32. Be3 {[%emt 0:00:31]} fxg4 {[%emt 0:00:12]} 33. Rxh6+ {[%emt 0:00:28]} Kf7 {[%emt 0:00:07]} 34. hxg4 {[%emt 0:01:45]} Bxg4 {[%emt 0:00:12]} 35. Rh7+ {[%emt 0:03:10]} Ke6 {[%emt 0:00:48]} 36. Rxa7 {[%emt 0:00:19]} c5 {[%emt 0:02:36]} 37. Ra1 {[%emt 0:00:37]} c4 {[%emt 0:01:21]} 38. Rc1 {[%emt 0:00:10]} 1/2-1/2

[Event "EYCC Girls-U16 2019"]
[Site "Bratislava"]
[Date "2019.08.04"]
[Round "3.7"]
[White "Krasteva, Beloslava"]
[Black "Esadze, Tamari"]
[Result "1-0"]
[ECO "D35"]
[WhiteElo "2327"]
[BlackElo "1997"]
[Annotator "NA"]
[PlyCount "121"]
[EventDate "2019.08.02"]
[EventType "swiss"]
[EventCountry "SVK"]
[SourceTitle "playchess.com"]
[Source "ChessBase"]
[SourceQuality "1"]
[TimeControl "40/5400+30:1800+30"]

1. d4 {[%emt 0:00:00]} d5 {[%emt 0:00:00]} 2. c4 {[%emt 0:00:00]} e6 {[%emt 0:00:00]} 3. Nc3 {[%emt 0:00:23]} Nf6 {[%emt 0:00:00]} 4. cxd5 {[%emt 0:00:36]} exd5 {[%emt 0:00:02]} 5. Bg5 {[%emt 0:00:16]} Be7 {[%emt 0:00:27]} 6. e3 {[%emt 0:00:31]} O-O {[%emt 0:00:27]} 7. Bd3 {[%emt 0:00:31]} h6 {[%emt 0:01:07]} 8. Bh4 {[%emt 0:01:10]} Re8 {[%emt 0:01:34]} 9. Nge2 {[%emt 0:07:11]} Nbd7 {[%emt 0:02:22]} 10. Qc2 {[%emt 0:01:31]} c6 {[%emt 0:03:12]} 11. O-O {[%emt 0:00:23]} Ne4 {[%emt 0:01:31]} 12. Bxe7 {[%emt 0:03:09]} Qxe7 {[%emt 0:01:11]} 13. Bxe4 {[%emt 0:01:58]} dxe4 {[%emt 0:00:05]} 14. d5 {[%emt 0:02:02]} Nf6 {[%emt 0:04:18]} 15. dxc6 {[%emt 0:00:54]} bxc6 {[%emt 0:00:06]} 16. Na4 {[%emt 0:04:29]} Ba6 {[%emt 0:08:59]} 17. Rfe1 {[%emt 0:03:32]} Bd3 {[%emt 0:09:05]} 18. Qc5 {[%emt 0:02:11]} Qc7 {[%emt 0:12:43]} 19. Nf4 {[%emt 0:16:14]} Ng4 {[%emt 0:16:03]} 20. h3 {[%emt 0:04:35]} Ne5 {[%emt 0:00:29]} 21. Qc3 {[%emt 0:04:41]} Rad8 {[%emt 0:06:12]} 22. Nc5 {[%emt 0:02:13]} g5 {[%emt 0:11:32]} 23. Nh5 {[%emt 0:03:05]} Qe7 {[%emt 0:01:38]} 24. Ng3 {[%emt 0:03:55]} Rd5 {[%emt 0:07:48]} 25. Ncxe4 {[%emt 0:06:50]} Bxe4 {[%emt 0:02:16]} 26. Nxe4 {[%emt 0:00:02]} Rd3 {[%emt 0:05:06]} 27. Qc2 {[%emt 0:04:45]} Red8 {[%emt 0:01:10]} 28. Red1 {[%emt 0:04:07]} f5 {[%emt 0:00:22]} 29. Nc3 {[%emt 0:02:01]} Qd6 {[%emt 0:02:49]} 30. Rxd3 {[%emt 0:01:21]} Qxd3 {[%emt 0:00:09]} 31. Qxd3 {[%emt 0:00:25]} Rxd3 {[%emt 0:00:04]} 32. Rd1 {[%emt 0:00:30]} Rxd1+ {[%emt 0:00:26]} 33. Nxd1 {[%emt 0:00:01]} Kf7 {[%emt 0:00:13]} 34. Kf1 {[%emt 0:03:42]} Ke6 {[%emt 0:00:05]} 35. Ke2 {[%emt 0:00:07]} Kd5 {[%emt 0:01:03]} 36. Nc3+ {[%emt 0:00:26]} Kd6 {[%emt 0:00:45]} 37. Nb1 {[%emt 0:03:02]} Kd5 {[%emt 0:00:24]} 38. Nd2 {[%emt 0:00:24]} Ng6 {[%emt 0:00:41]} 39. f3 {[%emt 0:04:03]} a6 {[%emt 0:02:14]} 40. g3 {[%emt 0:00:00]} Kd6 {[%emt 0:00:00]} 41. f4 {[%emt 0:11:14]} Kd5 {[%emt 0:10:50]} 42. Kd3 {[%emt 0:04:01]} gxf4 {[%emt 0:01:46]} 43. exf4 {[%emt 0:00:41]} h5 {[%emt 0:01:05]} 44. Nf3 {[%emt 0:00:22]} Ne7 {[%emt 0:02:33]} 45. Ne5 {[%emt 0:01:15]} Nc8 {[%emt 0:05:11]} 46. Nc4 {[%emt 0:01:29]} Ne7 {[%emt 0:01:36]} 47. Ne3+ {[%emt 0:00:48]} Ke6 {[%emt 0:04:40]} 48. Kd4 {[%emt 0:00:56]} Ng6 {[%emt 0:01:31]} 49. g4 {[%emt 0:03:54]} hxg4 {[%emt 0:03:58]} 50. hxg4 {[%emt 0:00:07]} Nxf4 {[%emt 0:00:02]} 51. gxf5+ {[%emt 0:00:09]} Kf6 {[%emt 0:00:48]} 52. b4 {[%emt 0:12:30]} Ne2+ {[%emt 0:01:05]} 53. Kc5 {[%emt 0:00:11]} Nc3 {[%emt 0:00:37]} 54. a3 {[%emt 0:00:17]} Nb5 {[%emt 0:00:46]} 55. a4 {[%emt 0:01:18]} Nc3 {[%emt 0:00:04]} 56. a5 {[%emt 0:00:18]} Na2 {[%emt 0:00:07]} 57. Nc2 {[%emt 0:02:21]} Kxf5 {[%emt 0:00:05]} 58. Kxc6 {[%emt 0:00:09]} Ke4 {[%emt 0:00:18]} 59. b5 {[%emt 0:00:52]} axb5 {[%emt 0:00:41]} 60. a6 {[%emt 0:00:07]} Kd3 {[%emt 0:01:49]} 61. a7 {[%emt 0:00:36]} 1-0

[Event "EYCC Girls-U16 2019"]
[Site "Bratislava"]
[Date "2019.08.04"]
[Round "3.8"]
[White "Lehaci, Miruna-Daria"]
[Black "Muedder, Melanie"]
[Result "1-0"]
[ECO "D02"]
[WhiteElo "2201"]
[BlackElo "1905"]
[Annotator "NA"]
[PlyCount "65"]
[EventDate "2019.08.02"]
[EventType "swiss"]
[EventCountry "SVK"]
[SourceTitle "playchess.com"]
[Source "ChessBase"]
[SourceQuality "1"]
[TimeControl "40/5400+30:1800+30"]

1. d4 {[%emt 0:00:00]} d5 {[%emt 0:00:00]} 2. Nf3 {[%emt 0:00:00]} c6 {[%emt 0:00:00]} 3. c4 {[%emt 0:00:00]} dxc4 {[%emt 0:00:17]} 4. e4 {[%emt 0:02:01]} b5 {[%emt 0:01:39]} 5. a4 {[%emt 0:01:59]} Nf6 {[%emt 0:02:50]} 6. e5 {[%emt 0:01:33]} Nd5 {[%emt 0:00:54]} 7. Nc3 {[%emt 0:00:33]} b4 {[%emt 0:04:49]} 8. Ne4 {[%emt 0:02:59]} Bf5 {[%emt 0:07:06]} 9. Ng3 {[%emt 0:08:01]} Bg6 {[%emt 0:09:20]} 10. Bxc4 {[%emt 0:02:27]} e6 {[%emt 0:00:48]} 11. O-O {[%emt 0:05:57]} Be7 {[%emt 0:02:59]} 12. Qe2 {[%emt 0:10:07]} O-O {[%emt 0:14:10]} 13. a5 {[%emt 0:03:49]} c5 {[%emt 0:06:34]} 14. dxc5 {[%emt 0:02:00]} Bxc5 {[%emt 0:01:53]} 15. Bg5 {[%emt 0:00:56]} Qc7 {[%emt 0:06:05]} 16. Ne4 {[%emt 0:03:44]} h6 {[%emt 0:09:53]} 17. Bd2 {[%emt 0:03:12]} Be7 {[%emt 0:00:58]} 18. Rfc1 {[%emt 0:01:34]} Qb7 {[%emt 0:03:02]} 19. Bb3 {[%emt 0:08:59]} Na6 {[%emt 0:07:54]} 20. Bc2 {[%emt 0:08:04]} Rac8 {[%emt 0:05:20]} 21. Bd3 {[%emt 0:09:12]} Nac7 {[%emt 0:01:45]} 22. Nd4 {[%emt 0:02:17]} b3 {[%emt 0:08:18]} 23. Nc6 {[%emt 0:00:33]} Bb4 {[%emt 0:00:30]} 24. a6 {[%emt 0:12:43]} Qb6 {[%emt 0:01:29]} 25. Nxb4 {[%emt 0:02:16]} Nxb4 {[%emt 0:00:37]} 26. Bxb4 {[%emt 0:00:14]} Qxb4 {[%emt 0:02:06]} 27. Nd6 {[%emt 0:00:06]} Qd4 {[%emt 0:01:15]} 28. Bxg6 {[%emt 0:00:19]} fxg6 {[%emt 0:00:14]} 29. Nxc8 {[%emt 0:00:05]} Rxc8 {[%emt 0:00:11]} 30. Rc4 {[%emt 0:01:08]} Qb6 {[%emt 0:00:24]} 31. Qe3 {[%emt 0:00:34]} Qb5 {[%emt 0:01:24]} 32. Rac1 {[%emt 0:00:06]} Qxa6 {[%emt 0:00:14]} 33. Qc3 {[%emt 0:00:14]} 1-0

[Event "EYCC Girls-U16 2019"]
[Site "Bratislava"]
[Date "2019.08.04"]
[Round "3.9"]
[White "Bardorz, Jana"]
[Black "Djidjeli, Sarah"]
[Result "0-1"]
[ECO "B32"]
[WhiteElo "1883"]
[BlackElo "2017"]
[Annotator "NA"]
[PlyCount "110"]
[EventDate "2019.08.02"]
[EventType "swiss"]
[EventCountry "SVK"]
[SourceTitle "playchess.com"]
[Source "ChessBase"]
[SourceQuality "1"]
[TimeControl "40/5400+30:1800+30"]

1. e4 {[%emt 0:00:00]} c5 {[%emt 0:00:00]} 2. Nf3 {[%emt 0:00:00]} Nc6 {[%emt 0:00:00]} 3. d4 {[%emt 0:00:00]} cxd4 {[%emt 0:00:00]} 4. Nxd4 {[%emt 0:00:00]} e5 {[%emt 0:00:00]} 5. Nb5 {[%emt 0:00:01]} d6 {[%emt 0:00:05]} 6. c4 {[%emt 0:00:31]} Be7 {[%emt 0:00:26]} 7. N1c3 {[%emt 0:00:39]} a6 {[%emt 0:00:09]} 8. Na3 {[%emt 0:00:05]} Nf6 {[%emt 0:00:35]} 9. Nc2 {[%emt 0:01:52]} O-O {[%emt 0:04:32]} 10. Be2 {[%emt 0:01:28]} Be6 {[%emt 0:01:02]} 11. O-O {[%emt 0:00:49]} Rc8 {[%emt 0:01:03]} 12. Be3 {[%emt 0:03:17]} Na5 {[%emt 0:06:57]} 13. b3 {[%emt 0:02:06]} b5 {[%emt 0:00:48]} 14. Nd5 {[%emt 0:03:29]} Bxd5 {[%emt 0:04:49]} 15. exd5 {[%emt 0:00:28]} bxc4 {[%emt 0:00:47]} 16. b4 {[%emt 0:02:02]} Nb7 {[%emt 0:00:41]} 17. Na3 {[%emt 0:02:22]} a5 {[%emt 0:03:12]} 18. Nxc4 {[%emt 0:02:47]} axb4 {[%emt 0:01:45]} 19. Rb1 {[%emt 0:03:46]} Nc5 {[%emt 0:10:48]} 20. Rxb4 {[%emt 0:02:56]} Qc7 {[%emt 0:08:03]} 21. f3 {[%emt 0:09:38]} Rb8 {[%emt 0:07:03]} 22. a3 {[%emt 0:07:30]} Ncd7 {[%emt 0:05:32]} 23. Qd2 {[%emt 0:07:25]} Rxb4 {[%emt 0:07:37]} 24. axb4 {[%emt 0:00:37]} Qb7 {[%emt 0:01:37]} 25. Rd1 {[%emt 0:11:47]} Rb8 {[%emt 0:01:23]} 26. b5 {[%emt 0:07:37]} Qxb5 {[%emt 0:04:43]} 27. Nxe5 {[%emt 0:02:56]} Qb3 {[%emt 0:01:46]} 28. Nc6 {[%emt 0:03:16]} Re8 {[%emt 0:00:09]} 29. Qd3 {[%emt 0:06:44]} Qxd3 {[%emt 0:01:41]} 30. Rxd3 {[%emt 0:00:11]} Bd8 {[%emt 0:00:55]} 31. Nxd8 {[%emt 0:03:32]} Rxd8 {[%emt 0:00:07]} 32. Rd1 {[%emt 0:01:56]} h6 {[%emt 0:03:25]} 33. f4 {[%emt 0:03:23]} Re8 {[%emt 0:04:09]} 34. Kf2 {[%emt 0:03:10]} Ne4+ {[%emt 0:00:42]} 35. Kf3 {[%emt 0:00:51]} Nc3 {[%emt 0:12:05]} 36. Rd3 {[%emt 0:00:57]} Nxe2 {[%emt 0:00:15]} 37. Kxe2 {[%emt 0:00:05]} Nf6 {[%emt 0:00:01]} 38. Kf3 {[%emt 0:01:32]} Rb8 {[%emt 0:01:08]} 39. Bc1 {[%emt 0:02:27]} Kf8 {[%emt 0:00:54]} 40. Ba3 {[%emt 0:00:00]} Ke7 {[%emt 0:00:00]} 41. g4 {[%emt 0:09:12]} Rb5 {[%emt 0:08:18]} 42. g5 {[%emt 0:05:51]} hxg5 {[%emt 0:00:59]} 43. fxg5 {[%emt 0:00:05]} Nxd5 {[%emt 0:00:07]} 44. Ke4 {[%emt 0:01:09]} Ke6 {[%emt 0:00:55]} 45. h4 {[%emt 0:01:10]} Rb1 {[%emt 0:01:22]} 46. Kf3 {[%emt 0:02:00]} Ke5 {[%emt 0:05:40]} 47. Kf2 {[%emt 0:04:17]} Rh1 {[%emt 0:11:04]} 48. Kg3 {[%emt 0:01:39]} Ke4 {[%emt 0:03:00]} 49. Rd2 {[%emt 0:01:53]} Ne3 {[%emt 0:01:37]} 50. Re2 {[%emt 0:04:36]} d5 {[%emt 0:01:46]} 51. Bd6 {[%emt 0:06:02]} d4 {[%emt 0:02:03]} 52. Bc5 {[%emt 0:00:38]} g6 {[%emt 0:02:01]} 53. Bb6 {[%emt 0:01:18]} Kd3 {[%emt 0:00:57]} 54. Ra2 {[%emt 0:00:15]} Nf5+ {[%emt 0:00:25]} 55. Kf2 {[%emt 0:00:37]} Rh2+ {[%emt 0:00:06]} 0-1

[Event "EYCC Girls-U16 2019"]
[Site "Bratislava"]
[Date "2019.08.04"]
[Round "3.10"]
[White "Mikic, Ivana"]
[Black "Radikovic, Anamarija"]
[Result "1/2-1/2"]
[ECO "B53"]
[WhiteElo "1884"]
[BlackElo "2021"]
[Annotator "NA"]
[PlyCount "78"]
[EventDate "2019.08.02"]
[EventType "swiss"]
[EventCountry "SVK"]
[SourceTitle "playchess.com"]
[Source "ChessBase"]
[SourceQuality "1"]
[TimeControl "40/5400+30:1800+30"]

1. e4 {[%emt 0:00:00]} c5 {[%emt 0:00:00]} 2. Nf3 {[%emt 0:00:00]} d6 {[%emt 0:00:00]} 3. d4 {[%emt 0:00:00]} cxd4 {[%emt 0:00:00]} 4. Qxd4 {[%emt 0:00:12]} Nc6 {[%emt 0:00:00]} 5. Bb5 {[%emt 0:00:11]} Bd7 {[%emt 0:00:00]} 6. Bxc6 {[%emt 0:00:13]} Bxc6 {[%emt 0:00:00]} 7. c4 {[%emt 0:00:33]} Nf6 {[%emt 0:00:03]} 8. Nc3 {[%emt 0:00:13]} g6 {[%emt 0:00:09]} 9. Be3 {[%emt 0:00:17]} Bg7 {[%emt 0:00:11]} 10. Qd3 {[%emt 0:00:37]} O-O {[%emt 0:00:29]} 11. O-O {[%emt 0:00:26]} a6 {[%emt 0:01:52]} 12. Rab1 {[%emt 0:01:56]} b5 {[%emt 0:05:56]} 13. Nd4 {[%emt 0:05:50]} bxc4 {[%emt 0:01:48]} 14. Nxc6 {[%emt 0:02:03]} cxd3 {[%emt 0:00:09]} 15. Nxd8 {[%emt 0:00:10]} Rfxd8 {[%emt 0:00:06]} 16. Bg5 {[%emt 0:10:00]} Kf8 {[%emt 0:03:54]} 17. Rfd1 {[%emt 0:05:48]} Nd7 {[%emt 0:05:58]} 18. Nd5 {[%emt 0:05:14]} f6 {[%emt 0:00:23]} 19. Be3 {[%emt 0:00:08]} Rdc8 {[%emt 0:08:18]} 20. f3 {[%emt 0:05:38]} Rab8 {[%emt 0:03:59]} 21. Rxd3 {[%emt 0:10:32]} Ne5 {[%emt 0:01:01]} 22. Ra3 {[%emt 0:01:31]} Nc4 {[%emt 0:16:23]} 23. Rxa6 {[%emt 0:04:43]} f5 {[%emt 0:07:16]} 24. Nb6 {[%emt 0:18:36]} Rxb6 {[%emt 0:20:47]} 25. Bxb6 {[%emt 0:02:46]} Nxb6 {[%emt 0:00:04]} 26. b3 {[%emt 0:03:45]} Rc2 {[%emt 0:02:05]} 27. Rd1 {[%emt 0:01:25]} Bh6 {[%emt 0:01:34]} 28. Rd3 {[%emt 0:02:19]} Nd7 {[%emt 0:00:10]} 29. b4 {[%emt 0:01:34]} Ne5 {[%emt 0:00:26]} 30. Rb3 {[%emt 0:02:24]} Nc4 {[%emt 0:01:14]} 31. Rb1 {[%emt 0:00:23]} Ne3 {[%emt 0:01:50]} 32. b5 {[%emt 0:00:39]} Rxg2+ {[%emt 0:00:59]} 33. Kh1 {[%emt 0:00:01]} Bf4 {[%emt 0:02:05]} 34. b6 {[%emt 0:00:36]} Rxh2+ {[%emt 0:00:05]} 35. Kg1 {[%emt 0:00:05]} Rg2+ {[%emt 0:02:07]} 36. Kh1 {[%emt 0:00:02]} fxe4 {[%emt 0:01:27]} 37. fxe4 {[%emt 0:01:09]} Rh2+ {[%emt 0:03:05]} 38. Kg1 {[%emt 0:00:02]} Rg2+ {[%emt 0:01:31]} 39. Kh1 {[%emt 0:00:01]} Rh2+ {[%emt 0:00:06]} 1/2-1/2

[Event "EYCC Girls-U16 2019"]
[Site "Bratislava"]
[Date "2019.08.04"]
[Round "3.11"]
[White "Afanasieva, Alexandra"]
[Black "Pecorini, Angie"]
[Result "1-0"]
[ECO "B53"]
[WhiteElo "2085"]
[BlackElo "1781"]
[Annotator "NA"]
[PlyCount "49"]
[EventDate "2019.08.02"]
[EventType "swiss"]
[EventCountry "SVK"]
[SourceTitle "playchess.com"]
[Source "ChessBase"]
[SourceQuality "1"]
[TimeControl "40/5400+30:1800+30"]

1. e4 {[%emt 0:00:00]} c5 {[%emt 0:00:00]} 2. Nf3 {[%emt 0:00:00]} d6 {[%emt 0:00:00]} 3. d4 {[%emt 0:00:00]} cxd4 {[%emt 0:00:00]} 4. Qxd4 {[%emt 0:00:00]} a6 {[%emt 0:01:26]} 5. h3 {[%emt 0:00:12]} Nc6 {[%emt 0:01:10]} 6. Qe3 {[%emt 0:01:10]} g6 {[%emt 0:05:56]} 7. c4 {[%emt 0:01:14]} Bg7 {[%emt 0:00:42]} 8. Be2 {[%emt 0:01:09]} f5 {[%emt 0:13:54]} 9. exf5 {[%emt 0:22:13]} Bxf5 {[%emt 0:00:09]} 10. O-O {[%emt 0:00:36]} Nb4 {[%emt 0:15:22]} 11. Na3 {[%emt 0:10:06]} e5 {[%emt 0:10:55]} 12. c5 {[%emt 0:10:46]} b5 {[%emt 0:17:13]} 13. Rd1 {[%emt 0:09:07]} d5 {[%emt 0:00:13]} 14. Nxe5 {[%emt 0:01:37]} Qe7 {[%emt 0:00:51]} 15. f4 {[%emt 0:01:56]} g5 {[%emt 0:08:09]} 16. Bh5+ {[%emt 0:04:30]} Kf8 {[%emt 0:00:41]} 17. Re1 {[%emt 0:11:34]} Bxe5 {[%emt 0:04:01]} 18. fxe5 {[%emt 0:00:49]} Nd3 {[%emt 0:03:04]} 19. Rf1 {[%emt 0:00:49]} Nf4 {[%emt 0:00:35]} 20. Rxf4 {[%emt 0:01:28]} gxf4 {[%emt 0:01:21]} 21. Qxf4 {[%emt 0:00:05]} Qe6 {[%emt 0:02:41]} 22. Nc2 {[%emt 0:04:54]} Ne7 {[%emt 0:03:56]} 23. Nd4 {[%emt 0:00:13]} Qc8 {[%emt 0:01:06]} 24. g4 {[%emt 0:01:04]} Ng6 {[%emt 0:03:45]} 25. Qh6+ {[%emt 0:05:01]} 1-0

[Event "EYCC Girls-U16 2019"]
[Site "Bratislava"]
[Date "2019.08.04"]
[Round "3.12"]
[White "Srdanovic, Jovana"]
[Black "Czarnecka, Lidia"]
[Result "1/2-1/2"]
[ECO "D43"]
[WhiteElo "1975"]
[BlackElo "1731"]
[Annotator "NA"]
[PlyCount "81"]
[EventDate "2019.08.02"]
[EventType "swiss"]
[EventCountry "SVK"]
[SourceTitle "playchess.com"]
[Source "ChessBase"]
[SourceQuality "1"]
[TimeControl "40/5400+30:1800+30"]

1. d4 {[%emt 0:00:00]} d5 {[%emt 0:00:00]} 2. c4 {[%emt 0:00:00]} c6 {[%emt 0:00:05]} 3. Nc3 {[%emt 0:00:00]} Nf6 {[%emt 0:00:10]} 4. Nf3 {[%emt 0:00:25]} e6 {[%emt 0:01:22]} 5. Bg5 {[%emt 0:01:14]} Be7 {[%emt 0:00:34]} 6. e3 {[%emt 0:00:26]} Nbd7 {[%emt 0:00:40]} 7. Bd3 {[%emt 0:02:16]} dxc4 {[%emt 0:02:02]} 8. Bxc4 {[%emt 0:00:05]} b5 {[%emt 0:01:25]} 9. Bd3 {[%emt 0:00:05]} a6 {[%emt 0:00:52]} 10. Bxf6 {[%emt 0:17:04]} Nxf6 {[%emt 0:00:46]} 11. a4 {[%emt 0:00:11]} Bb7 {[%emt 0:01:28]} 12. O-O {[%emt 0:00:30]} O-O {[%emt 0:03:00]} 13. Ne4 {[%emt 0:01:47]} Nd5 {[%emt 0:07:08]} 14. Qb3 {[%emt 0:08:01]} Nb4 {[%emt 0:02:58]} 15. Rfc1 {[%emt 0:00:55]} Qd5 {[%emt 0:01:17]} 16. Qd1 {[%emt 0:09:13]} Rfd8 {[%emt 0:09:13]} 17. Nc3 {[%emt 0:02:57]} Qd6 {[%emt 0:06:43]} 18. Ne5 {[%emt 0:05:48]} f5 {[%emt 0:04:56]} 19. Be2 {[%emt 0:11:36]} c5 {[%emt 0:18:42]} 20. axb5 {[%emt 0:03:14]} cxd4 {[%emt 0:00:12]} 21. exd4 {[%emt 0:00:06]} a5 {[%emt 0:00:30]} 22. Nc4 {[%emt 0:00:59]} Qxd4 {[%emt 0:04:47]} 23. Qxd4 {[%emt 0:00:47]} Rxd4 {[%emt 0:00:08]} 24. Nxa5 {[%emt 0:00:12]} Rb8 {[%emt 0:00:55]} 25. Bc4 {[%emt 0:04:49]} Kf7 {[%emt 0:01:02]} 26. Ne2 {[%emt 0:02:54]} Rd6 {[%emt 0:01:10]} 27. Nxb7 {[%emt 0:01:27]} Rxb7 {[%emt 0:00:07]} 28. Rd1 {[%emt 0:02:12]} Rbb6 {[%emt 0:01:39]} 29. Nc3 {[%emt 0:04:58]} Kf6 {[%emt 0:03:13]} 30. Na4 {[%emt 0:01:00]} Rb8 {[%emt 0:00:35]} 31. Rxd6 {[%emt 0:01:33]} Bxd6 {[%emt 0:00:06]} 32. Rd1 {[%emt 0:00:09]} Ke7 {[%emt 0:00:37]} 33. b6 {[%emt 0:02:14]} Nc6 {[%emt 0:00:38]} 34. Re1 {[%emt 0:00:25]} e5 {[%emt 0:00:31]} 35. Rc1 {[%emt 0:02:23]} Nd4 {[%emt 0:00:56]} 36. Kf1 {[%emt 0:01:08]} Kd7 {[%emt 0:00:46]} 37. Bd5 {[%emt 0:00:38]} Rc8 {[%emt 0:00:58]} 38. Rd1 {[%emt 0:05:40]} Rc2 {[%emt 0:01:19]} 39. b3 {[%emt 0:03:22]} g5 {[%emt 0:02:03]} 40. b7 {[%emt 0:00:00]} Kc7 {[%emt 0:00:00]} 41. h3 {[%emt 0:10:39]} 1/2-1/2